bitfinex/quotes_SOLUSD_20250616
["timestamp","ask_amount","ask_price","bid_price","bid_amount"]
[1750085228430,0.28432314,156.78,156.74,6.37999234]
[1750085230467,0.28432314,156.78,156.75,12.79820158]
[1750085231341,0.28432314,156.78,156.76,12.79820158]
[1750085231541,0.28432314,156.78,156.77,12.79820158]
[1750085231743,19.07613357,156.8,156.76,12.79820158]
[1750085232663,31.87433515,156.8,156.76,12.79820158]
[1750085232966,0.28432314,156.76,156.73,14.81212302]
[1750085233150,13.08252472,156.76,156.73,14.81212302]
[1750085233561,0.28432314,156.74,156.73,14.81212302]
[1750085234875,18.79181043,156.77,156.73,21.19252243]
[1750085235069,18.79181043,156.8,156.75,12.79820158]
[1750085235363,27.14,156.79,156.75,12.79820158]
[1750085235540,0.28432314,156.78,156.75,12.79820158]
[1750085235732,0.28432314,156.78,156.76,12.79820158]
[1750085236150,27.14,156.79,156.77,12.79820158]
[1750085236339,27.14,156.79,156.73,37.14352096]
[1750085236340,20.45821501,156.81,156.78,12.79820158]
[1750085236552,20.45821501,156.81,156.79,12.79820158]
[1750085237163,20.45821501,156.81,156.8,12.79820158]
[1750085237475,0.28432314,156.77,156.71,7.6721751]
[1750085237641,27.14,156.76,156.71,1.291222]
[1750085237839,0.28432314,156.74,156.72,6.38066699]
[1750085238055,0.28432314,156.77,156.71,1.291222]
[1750085238256,0.14216157,156.76,156.73,21.19244863]
[1750085238439,0.28432314,156.77,156.73,21.19244863]
[1750085238440,0.14216157,156.77,156.73,21.19244863]
[1750085238640,33.25641659,156.81,156.76,12.79820158]
[1750085238641,20.45821501,156.81,156.76,12.79820158]
[1750085238866,0.14216157,156.8,156.77,12.79820158]
[1750085239247,0.14216157,156.8,156.76,12.79820158]
[1750085239449,0.28432314,156.8,156.76,12.79820158]
[1750085240166,0.28432314,156.8,156.76,19.17734233]
[1750085240343,19.60246719,156.8,156.73,14.81212302]
[1750085240544,0.28432314,156.78,156.73,14.81212302]
[1750085240755,0.28432314,156.78,156.74,12.79820158]
[1750085240962,0.28432314,156.78,156.73,33.99057564]
[1750085240963,13.08252472,156.78,156.73,33.99057564]
[1750085241259,13.08252472,156.78,156.73,21.19237406]
[1750085241455,0.28432314,156.78,156.74,12.79820158]
[1750085241767,0.28432314,156.78,156.75,12.79820158]
[1750085242263,0.28432314,156.78,156.75,19.17743871]
[1750085243640,0.28432314,156.78,156.76,12.79820158]
[1750085244347,0.28432314,156.78,156.76,19.17708001]
[1750085245942,3.32696266,156.79,156.77,12.79820158]
[1750085246142,3.32696266,156.79,156.78,12.79820158]
[1750085246366,3.32696266,156.79,156.78,19.17656616]
[1750085247337,3.32696266,156.79,156.78,6.37836458]
[1750085247549,0.28432314,156.78,156.77,6.37868642]
[1750085248056,0.28432314,156.78,156.77,19.176888]
[1750085248557,0.28432314,156.78,156.77,6.37868642]
[1750085248758,0.28432314,156.78,156.77,19.176888]
[1750085249845,0.28432314,156.78,156.77,6.37868642]
[1750085250060,0.28432314,156.78,156.76,12.79820158]
[1750085250250,0.28432314,156.78,156.77,12.79820158]
[1750085251590,0.28432314,156.78,156.75,6.37958532]
[1750085251888,0.28432314,156.78,156.75,19.1777869]
[1750085252548,0.28432314,156.78,156.77,12.79820158]
[1750085253063,0.28432314,156.78,156.75,22.32854863]
[1750085253249,0.28432314,156.78,156.77,12.79820158]
[1750085254673,0.28432314,156.78,156.77,6.37877144]
[1750085254875,0.28432314,156.78,156.77,19.17697302]
[1750085255074,0.28432314,156.78,156.76,19.17723267]
[1750085256075,0.42648471,156.78,156.74,6.37987814]
[1750085256259,13.22468629,156.78,156.74,19.17807972]
[1750085256574,0.42648471,156.78,156.74,19.17807972]
[1750085256751,13.22468629,156.78,156.72,6.38080653]
[1750085256948,0.42648471,156.78,156.74,12.79820158]
[1750085257148,0.42648471,156.78,156.75,12.79820158]
[1750085258677,0.28432314,156.78,156.76,12.79820158]
[1750085258878,0.28432314,156.78,156.76,19.17715263]
[1750085259379,3.32696266,156.79,156.76,19.17715263]
[1750085259552,0.14216157,156.78,156.76,19.17715263]
[1750085259885,0.28432314,156.78,156.76,19.17715263]
[1750085260090,0.28432314,156.78,156.77,12.79820158]
[1750085260450,3.32696266,156.79,156.77,12.79820158]
[1750085260651,20.45821501,156.81,156.78,27.09940316]
[1750085260866,20.45821501,156.81,156.8,12.79820158]
[1750085261751,9.28135071,156.81,156.8,31.44785044]
[1750085261953,28.6636,156.9,156.8,31.44785044]
[1750085262155,3.32464852,156.86,156.85,12.79820158]
[1750085262453,47.83536478,156.9,156.85,12.79820158]
[1750085262663,3.32483394,156.86,156.85,12.79820158]
[1750085262956,3.32483394,156.86,156.85,19.17371959]
[1750085262957,0.28432314,156.86,156.85,19.17371959]
[1750085263266,3.609202,156.86,156.85,12.79820158]
[1750085263476,0.28432314,156.85,156.84,6.37576716]
[1750085263775,0.28432314,156.85,156.84,19.17396874]
[1750085264170,0.28432314,156.85,156.84,12.79820158]
[1750085264860,3.32487886,156.86,156.84,12.79820158]
[1750085265184,3.32487886,156.86,156.85,12.79820158]
[1750085265689,3.32487886,156.86,156.84,26.0]
[1750085265864,3.32487886,156.86,156.85,12.79820158]
[1750085266854,3.32487886,156.86,156.85,19.17371959]
[1750085267056,3.609202,156.86,156.82,26.0]
[1750085267363,0.28432314,156.85,156.83,12.79820158]
[1750085267671,0.28432314,156.85,156.82,12.79820158]
[1750085267974,13.08252472,156.85,156.8,12.79820158]
[1750085268184,12.79820158,156.84,156.79,19.17615935]
[1750085269384,0.28432314,156.82,156.79,19.17615935]
[1750085269989,0.28432314,156.82,156.8,12.79820158]
[1750085270285,0.28432314,156.82,156.81,12.79820158]
[1750085270855,0.28432314,156.82,156.79,22.32285221]
[1750085271079,0.28432314,156.82,156.81,19.17534589]
[1750085273559,0.28432314,156.82,156.79,15.94489444]
[1750085273787,0.28432314,156.82,156.81,12.79820158]
[1750085275892,0.28432314,156.82,156.81,6.37714431]
[1750085276371,0.28432314,156.82,156.81,19.17534589]
[1750085279795,3.32487886,156.86,156.81,22.32000509]
[1750085280095,0.28432314,156.85,156.82,12.79820158]
[1750085280565,0.28432314,156.85,156.83,6.37633105]
[1750085280896,0.28432314,156.85,156.84,12.79820158]
[1750085281077,0.28432314,156.85,156.83,19.17453263]
[1750085281458,0.28432314,156.85,156.83,6.37633105]
[1750085282693,0.28432314,156.85,156.79,22.32285221]
[1750085283467,3.32548601,156.84,156.81,12.79820158]
[1750085283669,0.28432314,156.83,156.81,12.79820158]
[1750085284374,0.28432314,156.83,156.82,12.79820158]
[1750085284581,0.28432314,156.83,156.82,19.17493924]
[1750085285077,3.32548601,156.84,156.82,19.17493924]
[1750085285292,3.32548601,156.84,156.83,12.79820158]
[1750085285685,3.60980915,156.84,156.83,12.79820158]
[1750085286290,3.60980915,156.84,156.82,6.37673766]
[1750085286495,3.60980915,156.84,156.83,12.79820158]
[1750085286711,3.60980915,156.84,156.83,19.17453263]
[1750085287410,3.32548601,156.84,156.83,19.17453263]
[1750085287794,27.14,156.91,156.83,35.11536027]
[1750085287991,0.42648471,156.9,156.83,22.31715869]
[1750085288214,13.22468629,156.9,156.85,12.79820158]
[1750085288399,16.54961456,156.9,156.85,12.79820158]
[1750085288695,27.14,156.89,156.86,12.79820158]
[1750085288900,27.14,156.89,156.86,19.17330263]
[1750085289497,27.14,156.89,156.86,12.79820158]
[1750085289689,27.14,156.89,156.84,6.3759245]
[1750085289690,39.93820158,156.89,156.84,6.3759245]
[1750085289907,27.14,156.89,156.84,19.17412608]
[1750085290107,27.14,156.89,156.85,12.79820158]
[1750085290688,27.14,156.89,156.84,6.3759245]
[1750085290898,27.14,156.89,156.85,6.37516967]
[1750085291109,27.14,156.89,156.85,19.17337125]
[1750085291686,27.14,156.89,156.85,6.37516967]
[1750085291892,27.14,156.89,156.85,19.17337125]
[1750085292901,27.14,156.89,156.85,14.91355924]
[1750085293102,42.05233212,156.89,156.84,6.37579253]
[1750085293296,0.42648471,156.88,156.84,14.9141821]
[1750085293920,0.42648471,156.88,156.85,8.53838957]
[1750085294091,0.28432314,156.88,156.87,8.53838957]
[1750085295118,0.28432314,156.88,156.85,6.37551801]
[1750085295290,0.28432314,156.88,156.86,8.53838957]
[1750085295696,0.28432314,156.88,156.85,6.37551801]
[1750085295913,0.28432314,156.88,156.86,8.53838957]
[1750085297224,0.28432314,156.88,156.85,6.37551801]
[1750085297225,0.42648471,156.88,156.85,8.53838957]
[1750085297532,0.42648471,156.88,156.82,6.37673766]
[1750085297533,3.32492827,156.9,156.87,8.53838957]
[1750085297817,3.32492827,156.9,156.89,8.53838957]
[1750085298413,3.60925141,156.9,156.89,8.53838957]
[1750085298593,3.46708984,156.9,156.89,8.53838957]
[1750085299094,3.60925141,156.9,156.89,14.9122821]
[1750085299299,3.32492827,156.9,156.89,14.9122821]
[1750085299601,3.32492827,156.9,156.88,8.53838957]
[1750085300000,3.32492827,156.9,156.87,8.53838957]
[1750085300394,3.32492827,156.9,156.88,8.53838957]
[1750085301104,3.32492827,156.9,156.88,14.91261687]
[1750085302015,0.28432314,156.89,156.86,8.53838957]
[1750085302717,0.28432314,156.89,156.85,6.37551801]
[1750085302928,0.28432314,156.89,156.86,8.53838957]
[1750085303220,0.28432314,156.89,156.86,14.91332503]
[1750085303523,0.28432314,156.89,156.86,6.37493546]
[1750085303732,0.28432314,156.89,156.86,14.91332503]
[1750085304106,0.28432314,156.89,156.87,8.53838957]
[1750085304417,0.28432314,156.89,156.86,6.37493546]
[1750085304594,0.28432314,156.89,156.87,8.53838957]
[1750085305000,3.32492827,156.9,156.88,8.53838957]
[1750085307323,3.60925141,156.9,156.89,6.37389253]
[1750085307494,3.32492827,156.9,156.88,8.53838957]
[1750085307691,0.28432314,156.89,156.86,8.53838957]
[1750085307916,3.32492827,156.9,156.88,8.53838957]
[1750085308620,3.32492827,156.9,156.85,22.31431303]
[1750085308930,3.32492827,156.9,156.88,8.53838957]
[1750085309524,3.60925141,156.9,156.89,6.37389253]
[1750085309694,3.60925141,156.9,156.85,15.93879502]
[1750085309695,0.28432314,156.89,156.86,6.37511156]
[1750085310396,3.3246107,156.88,156.86,14.91350113]
[1750085311417,3.60893384,156.88,156.87,14.91309473]
[1750085312925,3.60893384,156.88,156.84,15.93980799]
[1750085312926,0.28432314,156.87,156.84,6.3759245]
[1750085313105,0.28432314,156.87,156.84,14.91431407]
[1750085313710,0.28432314,156.87,156.84,6.3759245]
[1750085314001,0.28432314,156.87,156.81,22.16211716]
[1750085314205,8.82271271,156.87,156.82,14.91512723]
[1750085314402,15.19750673,156.87,156.82,14.91512723]
[1750085314614,0.28432314,156.85,156.82,8.53838957]
[1750085315122,0.28432314,156.85,156.81,12.59697159]
[1750085315425,11.86300027,156.88,156.83,8.53838957]
[1750085315725,0.28432314,156.87,156.85,8.53838957]
[1750085315926,0.28432314,156.87,156.84,8.53838957]
[1750085316504,0.28432314,156.87,156.86,6.37511156]
[1750085317532,3.3246107,156.88,156.84,6.3759245]
[1750085317730,3.3246107,156.88,156.85,8.53838957]
[1750085318525,0.28432314,156.87,156.84,8.53838957]
[1750085318730,0.28432314,156.87,156.83,8.53838957]
[1750085318914,8.82271271,156.87,156.83,8.53838957]
[1750085319113,8.82271271,156.87,156.82,14.91512723]
[1750085319318,8.82271271,156.87,156.83,8.53838957]
[1750085319622,8.53838957,156.86,156.81,12.59700307]
[1750085319926,0.28432314,156.85,156.81,14.75838957]
[1750085320132,8.82271271,156.85,156.81,14.75838957]
[1750085320621,0.28432314,156.83,156.81,6.22]
[1750085321704,10.96943061,156.87,156.82,8.53838957]
[1750085321910,10.96943061,156.87,156.81,12.59709581]
[1750085321911,10.96943061,156.87,156.86,8.53838957]
[1750085322108,10.96943061,156.87,156.82,6.4735]
[1750085322318,10.96943061,156.87,156.86,8.53838957]
[1750085322523,10.96943061,156.87,156.86,14.91350113]
[1750085323824,15.72884904,156.95,156.86,49.5009289]
[1750085324119,0.28432314,156.94,156.91,8.53838957]
[1750085324431,3.60470982,156.94,156.91,8.53838957]
[1750085324729,3.32038668,156.94,156.91,14.91133999]
[1750085324910,0.28432314,156.93,156.91,14.91133999]
[1750085325316,3.32038668,156.94,156.91,14.91133999]
[1750085325529,0.14216157,156.93,156.91,14.91133999]
[1750085325911,0.28432314,156.93,156.91,6.37295042]
[1750085326114,0.28432314,156.93,156.91,14.91133999]
[1750085326427,0.28432314,156.93,156.91,6.37295042]
[1750085327305,3.32038668,156.94,156.91,14.91133999]
[1750085327506,3.32038668,156.94,156.92,8.53838957]
[1750085327719,3.32038668,156.94,156.91,6.37295042]
[1750085327924,3.32038668,156.94,156.91,14.91133999]
[1750085329543,3.32038668,156.94,156.93,8.53838957]
[1750085330910,3.32038668,156.94,156.91,6.37295042]
[1750085331112,3.32038668,156.94,156.9,6.37348629]
[1750085331330,3.32038668,156.94,156.91,8.53838957]
[1750085331641,3.32038668,156.94,156.93,8.53838957]
[1750085332636,3.32038668,156.94,156.93,14.91065746]
[1750085333444,3.32038668,156.94,156.92,14.91100134]
[1750085333629,3.32038668,156.94,156.91,6.37293847]
[1750085333832,3.32038668,156.94,156.91,14.91132804]
[1750085334344,11.85877625,156.94,156.89,8.53838957]
[1750085334854,0.28432314,156.93,156.9,8.53838957]
[1750085336328,30.40038668,156.94,156.92,8.53838957]
[1750085336646,3.32038668,156.94,156.92,14.91085847]
[1750085336828,3.32038668,156.94,156.92,6.3724689]
[1750085337012,3.32038668,156.94,156.92,14.91085847]
[1750085337417,3.32038668,156.94,156.92,6.3724689]
[1750085337635,3.32038668,156.94,156.92,14.91085847]
[1750085341819,3.32038668,156.94,156.93,8.53838957]
[1750085343456,3.32038668,156.94,156.9,6.37348629]
[1750085343745,3.32038668,156.94,156.9,14.91187586]
[1750085345222,0.28432314,156.93,156.9,14.91187586]
[1750085346944,3.32038668,156.94,156.92,8.53838957]
[1750085347132,3.32038668,156.94,156.93,14.91065746]
[1750085347548,11.34848216,156.95,156.93,14.91065746]
[1750085347754,11.34848216,156.95,156.94,8.53838957]
[1750085349127,11.34848216,156.95,156.94,14.91025142]
[1750085349651,11.34848216,156.95,156.94,6.37186185]
[1750085349827,11.34848216,156.95,156.94,14.91025142]
[1750085354124,11.34848216,156.95,156.93,8.53838957]
[1750085354351,11.34848216,156.95,156.92,14.91106354]
[1750085354554,11.34848216,156.95,156.92,6.37267397]
[1750085354738,11.34848216,156.95,156.91,8.53838957]
[1750085354739,0.28432314,156.94,156.91,8.53838957]
[1750085355055,0.28432314,156.94,156.91,14.91145319]
[1750085355233,0.28432314,156.94,156.91,6.37306362]
[1750085355735,0.28432314,156.94,156.91,14.91145319]
[1750085355940,0.28432314,156.94,156.91,6.37306362]
[1750085356363,0.28432314,156.94,156.91,14.91145319]
[1750085358852,0.28432314,156.94,156.91,6.37306362]
[1750085359068,0.28432314,156.94,156.91,14.91145319]
[1750085359563,0.28432314,156.94,156.92,8.53838957]
[1750085360264,0.28432314,156.94,156.91,6.37306362]
[1750085360461,0.28432314,156.94,156.91,14.91145319]
[1750085362669,11.34848216,156.95,156.93,8.53838957]
[1750085362845,11.34848216,156.95,156.94,8.53838957]
[1750085363240,11.34848216,156.95,156.94,14.91025142]
[1750085367479,11.34848216,156.95,156.94,35.17900028]
[1750085369383,11.34848216,156.95,156.93,5.10512616]
[1750085369597,8.53838957,156.94,156.89,6.37389253]
[1750085369868,0.28432314,156.93,156.9,8.53838957]
[1750085370277,0.28432314,156.93,156.89,6.37389253]
[1750085370278,13.29961324,156.92,156.89,6.37389253]
[1750085370444,5.04592208,156.93,156.86,6.2]
[1750085370445,8.53838957,156.9,156.86,6.2]
[1750085370646,4.76122367,156.89,156.86,6.2]
[1750085370866,4.76122367,156.88,156.86,12.57495237]
[1750085371162,9.52466424,156.87,156.86,21.11334194]
[1750085372067,9.52236258,156.87,156.86,21.11334194]
[1750085372248,4.76266883,156.9,156.86,21.11334194]
[1750085372566,6.54026157,156.93,156.89,8.53838957]
[1750085372567,27.04,156.93,156.89,8.53838957]
[1750085372767,9.5211785,156.92,156.9,8.53838957]
[1750085372956,9.5211785,156.91,156.9,8.53838957]
[1750085373156,4.76058925,156.91,156.9,8.53838957]
[1750085373767,31.80121971,156.93,156.91,6.3730801]
[1750085373963,4.76055849,156.92,156.91,6.3730801]
[1750085374348,4.76061592,156.92,156.91,6.3730801]
[1750085374966,4.76061592,156.92,156.87,22.31146808]
[1750085375178,4.76061592,156.91,156.9,8.53838957]
[1750085375406,4.76121971,156.93,156.87,22.31146808]
[1750085375576,9.52143278,156.91,156.89,8.53838957]
[1750085375774,4.76071591,156.9,156.89,8.53838957]
[1750085376691,9.52134437,156.9,156.89,8.53838957]
[1750085376898,4.76121971,156.93,156.9,6.37348629]
[1750085377077,4.76121971,156.93,156.9,14.91187586]
[1750085377403,4.76061592,156.92,156.9,14.91187586]
[1750085377590,9.52123376,156.91,156.9,14.91187586]
[1750085378610,9.5210168,156.91,156.9,14.91187586]
[1750085379490,9.52070805,156.91,156.9,14.91187586]
[1750085381092,11.34848216,156.95,156.9,30.8455916]
[1750085381093,16.10931925,156.95,156.9,30.8455916]
[1750085381275,11.34848216,156.95,156.94,8.53838957]
[1750085381474,20.86901524,156.95,156.94,8.53838957]
[1750085383085,20.86901524,156.95,156.94,14.91025142]
[1750085383473,20.86901524,156.95,156.94,6.37186185]
[1750085383677,20.86901524,156.95,156.94,14.91025142]
[1750085383904,20.86876462,156.95,156.94,14.91025142]
[1750085384710,20.86876462,156.95,156.89,20.30224886]
[1750085384711,20.86876462,156.95,156.93,6.37214437]
[1750085385007,9.52028246,156.94,156.93,6.37214437]
[1750085385314,9.52028246,156.94,156.9,6.37348629]
[1750085385481,9.52028246,156.93,156.91,8.53838957]
[1750085385683,16.10931925,156.95,156.92,8.53838957]
[1750085385882,9.52078482,156.94,156.92,8.53838957]
[1750085386082,9.52078482,156.93,156.92,8.53838957]
[1750085386709,9.52078482,156.93,156.9,6.37348629]
[1750085386883,9.52101313,156.92,156.9,14.91187586]
[1750085387086,4.76098226,156.94,156.92,6.37267397]
[1750085387291,9.5203943,156.93,156.92,14.91106354]
[1750085388295,12.83927937,156.93,156.92,14.91106354]
[1750085388804,12.83927937,156.93,156.92,6.37267397]
[1750085389192,12.83927937,156.93,156.91,8.53838957]
[1750085389397,9.5203943,156.92,156.91,8.53838957]
[1750085389599,9.5205621,156.92,156.91,8.53838957]
[1750085391188,9.5205621,156.92,156.91,14.91146967]
[1750085391385,3.31888507,156.93,156.91,14.91146967]
[1750085391688,3.31888507,156.93,156.92,8.53838957]
[1750085391990,12.84152141,156.93,156.92,8.53838957]
[1750085392719,12.84166817,156.93,156.92,8.53838957]
[1750085392922,12.84166817,156.93,156.91,6.3730801]
[1750085393101,3.31888507,156.93,156.92,8.53838957]
[1750085393408,12.84107021,156.93,156.92,14.91106354]
[1750085393598,12.84111996,156.93,156.92,14.91106354]
[1750085395397,8.08002739,156.93,156.92,14.91106354]
[1750085395597,12.84079894,156.93,156.92,6.37267397]
[1750085395795,12.84096763,156.93,156.92,14.91106354]
[1750085397891,12.84096763,156.93,156.92,6.37267397]
[1750085398409,12.84096763,156.93,156.92,14.91106354]
[1750085400124,12.84132869,156.93,156.92,14.91106354]
[1750085400324,0.28432314,156.92,156.87,15.93674551]
[1750085400496,9.52244362,156.91,156.88,6.37429882]
[1750085400699,9.52244362,156.9,156.88,8.53838957]
[1750085400898,9.52244362,156.89,156.87,6.37456369]
[1750085401225,8.53838957,156.9,156.87,6.37456369]
[1750085401226,9.52382182,156.88,156.87,6.37456369]
[1750085401720,9.52382182,156.88,156.85,12.55521446]
[1750085401925,9.52382182,156.87,156.85,12.55521446]
[1750085402094,9.52382182,156.86,156.85,12.55521446]
[1750085402600,9.52382182,156.86,156.85,6.18]
[1750085402801,26.0,156.83,156.79,34.82140527]
[1750085403002,9.52382182,156.82,156.78,8.53838957]
[1750085403224,9.52382182,156.81,156.78,6.37836458]
[1750085403520,27.28432314,156.85,156.8,8.53838957]
[1750085403697,9.52199516,156.84,156.83,8.53838957]
[1750085403902,9.52214038,156.84,156.83,8.53838957]
[1750085404132,9.52214038,156.84,156.83,6.37633105]
[1750085404300,9.52214038,156.84,156.82,8.53838957]
[1750085404499,9.52214038,156.83,156.82,8.53838957]
[1750085404707,9.52214038,156.83,156.81,6.37714431]
[1750085405011,0.28432314,156.86,156.82,8.53838957]
[1750085405210,9.50845684,156.85,156.81,6.37714431]
[1750085405425,9.50845684,156.84,156.82,8.53838957]
[1750085405626,9.50845684,156.83,156.82,8.53838957]
[1750085405805,18.04684641,156.83,156.75,1.6221]
[1750085406009,9.79277998,156.82,156.76,6.37917836]
[1750085406206,9.50845684,156.81,156.79,14.91634734]
[1750085406422,0.28432314,156.82,156.79,14.91634734]
[1750085406733,27.0,156.84,156.81,8.53838957]
[1750085406734,9.49082398,156.83,156.81,8.53838957]
[1750085407040,9.4910962,156.83,156.81,8.53838957]
[1750085407212,9.49059892,156.83,156.8,8.53838957]
[1750085407934,9.49059988,156.83,156.8,8.53838957]
[1750085408506,3.31978425,156.82,156.81,6.37714431]
[1750085408730,3.31978425,156.82,156.81,14.91553388]
[1750085409106,3.31978425,156.82,156.75,36.21999704]
[1750085409318,3.31978425,156.82,156.78,8.53838957]
[1750085409630,3.31978425,156.82,156.79,8.53838957]
[1750085410138,3.31978425,156.82,156.81,8.53838957]
[1750085410438,3.31978425,156.82,156.81,14.91553388]
[1750085411744,3.31978425,156.82,156.81,6.37714431]
[1750085411945,3.31978425,156.82,156.79,6.37795777]
[1750085412127,3.31978425,156.82,156.79,14.91634734]
[1750085413059,0.28432314,156.81,156.73,6.18]
[1750085413225,0.28432314,156.81,156.74,6.37999234]
[1750085413226,8.53838957,156.79,156.74,6.37999234]
[1750085413553,8.53838957,156.78,156.74,6.37999234]
[1750085414119,8.53838957,156.77,156.73,21.09865379]
[1750085414308,18.02094692,156.77,156.73,12.56026422]
[1750085414543,9.48255735,156.78,156.74,8.53838957]
[1750085414841,13.2786784,156.78,156.74,8.53838957]
[1750085415024,9.4718387,156.78,156.75,8.53838957]
[1750085415924,35.53838957,156.79,156.75,8.53838957]
[1750085416241,27.0,156.79,156.73,22.13099853]
[1750085416449,14.3419017,156.8,156.73,22.13099853]
[1750085416450,22.88029127,156.8,156.73,22.13099853]
[1750085416649,22.88029127,156.8,156.77,6.37877144]
[1750085416939,14.3419017,156.8,156.77,6.37877144]
[1750085417524,22.88029127,156.8,156.77,6.37877144]
[1750085417821,14.3419017,156.8,156.77,6.37877144]
[1750085418023,14.05757856,156.8,156.77,14.91716101]
[1750085418231,14.05757856,156.8,156.78,8.53838957]
[1750085418740,14.05757856,156.8,156.79,6.37795777]
[1750085420118,14.05757856,156.8,156.77,6.37877144]
[1750085420317,14.05757856,156.8,156.78,8.53838957]
[1750085420539,14.05757856,156.8,156.77,14.91716101]
[1750085421115,14.05757856,156.8,156.78,8.53838957]
[1750085421444,14.05757856,156.8,156.79,8.53838957]
[1750085421941,14.05757856,156.8,156.78,8.53838957]
[1750085422522,14.05757856,156.8,156.79,8.53838957]
[1750085423150,14.05757856,156.8,156.78,14.91675415]
[1750085424149,14.05757856,156.8,156.78,6.37836458]
[1750085424634,14.05757856,156.8,156.78,14.91675415]
[1750085424831,14.05757856,156.8,156.78,6.37836458]
[1750085425350,14.05757856,156.8,156.78,14.91675415]
[1750085425651,14.05757856,156.8,156.79,8.53838957]
[1750085427028,14.05757856,156.8,156.78,6.37836458]
[1750085427230,14.05757856,156.8,156.79,14.91634734]
[1750085428049,14.05757856,156.8,156.79,6.37795777]
[1750085428548,14.05757856,156.8,156.77,14.91716101]
[1750085428850,17.3768143,156.8,156.78,8.53838957]
[1750085429349,17.3768143,156.8,156.79,6.37795777]
[1750085429948,17.3768143,156.8,156.79,14.91634734]
[1750085430857,17.66113744,156.8,156.77,8.53838957]
[1750085431065,44.64113744,156.8,156.76,8.53838957]
[1750085431356,44.64113744,156.8,156.76,14.91739832]
[1750085431556,44.64113744,156.8,156.77,8.53838957]
[1750085433857,44.64113744,156.8,156.78,6.37836458]
[1750085435160,17.66113744,156.8,156.78,6.37836458]
[1750085435540,3.31923574,156.8,156.78,6.37836458]
[1750085435853,3.31923574,156.8,156.79,14.91634734]
[1750085437460,3.31923574,156.8,156.79,6.37795777]
[1750085437958,3.31923574,156.8,156.78,14.91675415]
[1750085439751,8.05242449,156.8,156.78,14.91675415]
[1750085439932,3.31923574,156.8,156.78,14.91675415]
[1750085440331,3.31923574,156.8,156.79,8.53838957]
[1750085441125,3.31923574,156.8,156.78,14.91675415]
[1750085441328,8.05899099,156.8,156.78,14.91675415]
[1750085441554,3.31923574,156.8,156.78,14.91675415]
[1750085442056,3.31923574,156.8,156.78,8.53838957]
[1750085442553,9.48908469,156.79,156.78,8.53838957]
[1750085442753,3.31923574,156.8,156.78,8.53838957]
[1750085442934,3.31923574,156.8,156.74,22.3299732]
[1750085443147,3.31923574,156.8,156.79,6.37795777]
[1750085443333,12.81601904,156.8,156.79,14.91634734]
[1750085444057,3.31923574,156.8,156.79,14.91634734]
[1750085444356,9.49754804,156.83,156.79,30.86124178]
[1750085444658,9.49754804,156.82,156.79,22.32285221]
[1750085444856,9.49754804,156.81,156.79,22.32285221]
[1750085445062,15.42516016,156.84,156.79,22.32285221]
[1750085445359,9.51663434,156.83,156.79,15.94489444]
[1750085445656,9.51665524,156.82,156.79,15.94489444]
[1750085445833,15.42516016,156.84,156.79,15.94489444]
[1750085446031,15.42516016,156.84,156.83,8.53838957]
[1750085446230,24.94094186,156.84,156.83,8.53838957]
[1750085446636,24.94610993,156.84,156.83,8.53838957]
[1750085447260,24.94610993,156.84,156.83,14.91472062]
[1750085449546,24.9490029,156.84,156.83,14.91472062]
[1750085449750,24.9490029,156.84,156.8,14.91594059]
[1750085449751,33.48739247,156.84,156.8,14.91594059]
[1750085449947,36.74816588,156.83,156.8,6.37755102]
[1750085450266,9.52384274,156.82,156.78,6.37836458]
[1750085450470,9.52384274,156.81,156.79,8.53838957]
[1750085450657,27.22432314,156.83,156.8,8.53838957]
[1750085450861,8.82271271,156.81,156.74,6.37999234]
[1750085451053,8.53838957,156.78,156.74,14.91838191]
[1750085451253,36.74956714,156.77,156.74,6.37999234]
[1750085451477,9.525244,156.76,156.74,6.37999234]
[1750085451661,27.22432314,156.77,156.74,6.37999234]
[1750085451861,9.52580116,156.76,156.73,6.38037088]
[1750085452066,9.52580116,156.75,156.73,14.91876045]
[1750085452279,9.52671836,156.74,156.73,14.91876045]
[1750085452672,27.22432314,156.77,156.73,14.91876045]
[1750085452882,9.52632558,156.76,156.73,14.91876045]
[1750085453075,26.94,156.77,156.74,8.53838957]
[1750085453258,9.52585149,156.76,156.74,8.53838957]
[1750085453456,26.94,156.77,156.74,8.53838957]
[1750085453656,9.52582636,156.76,156.74,8.53838957]
[1750085453871,26.94,156.77,156.75,6.37958532]
[1750085454051,9.81040822,156.76,156.71,1.291222]
[1750085454259,9.52608508,156.75,156.73,8.53838957]
[1750085454456,9.52608508,156.74,156.73,8.53838957]
[1750085454668,4.76304254,156.74,156.73,8.53838957]
[1750085455052,26.94,156.77,156.73,8.53838957]
[1750085455253,9.5262435,156.76,156.73,8.53838957]
[1750085455470,9.5262435,156.75,156.74,8.53838957]
[1750085455747,4.76312175,156.75,156.74,8.53838957]
[1750085455968,4.76312175,156.75,156.74,14.91838191]
[1750085456380,9.52540954,156.75,156.74,6.37999234]
[1750085457272,9.52540962,156.75,156.74,6.37999234]
[1750085458059,9.52540962,156.75,156.73,6.3802421]
[1750085458269,9.52540962,156.74,156.73,6.3802421]
[1750085460652,9.5264344,156.74,156.73,6.3802421]